bitfinex-derivatives/quotes_BNBF0:USTF0_20250417
["timestamp","ask_amount","ask_price","bid_price","bid_amount"]
[1744928641046,0.29782386,591.75,591.16,4.127]
[1744928641249,0.29782386,591.77,591.16,4.127]
[1744928641446,0.29782386,591.76,591.16,4.127]
[1744928641648,0.29782386,591.77,591.16,4.127]
[1744928641847,0.29782137,591.76,591.16,4.127]
[1744928642046,0.29782137,591.77,591.16,4.127]
[1744928642250,0.29782137,591.76,591.16,4.127]
[1744928642447,0.29782137,591.77,591.16,4.127]
[1744928642648,0.29782137,591.76,591.16,4.127]
[1744928642952,0.29782137,591.75,591.16,4.127]
[1744928643151,0.29782137,591.77,591.16,4.127]
[1744928643350,0.29782137,591.74,591.16,4.127]
[1744928643651,0.807,591.78,591.16,4.127]
[1744928653163,0.29792007,591.77,591.16,4.127]
[1744928653863,0.29792007,591.79,591.16,4.127]
[1744928654057,0.29792007,591.78,591.16,4.127]
[1744928654259,0.29792007,591.79,591.16,4.127]
[1744928654460,0.29792007,591.78,591.16,4.127]
[1744928654661,0.29792007,591.79,591.16,4.127]
[1744928654964,0.29792007,591.78,591.16,4.127]
[1744928655158,0.29792007,591.79,591.16,4.127]
[1744928656660,0.721,591.78,591.16,4.127]
[1744928656858,0.29792007,591.77,591.16,4.127]
[1744928657565,0.721,591.78,591.16,4.127]
[1744928657766,0.29790476,591.77,591.16,4.127]
[1744928659262,0.29791452,591.76,591.16,4.127]
[1744928659466,0.29791452,591.77,591.16,4.127]
[1744928659766,0.29791525,591.76,591.16,4.127]
[1744928660065,0.29791525,591.77,591.16,4.127]
[1744928660266,0.721,591.78,591.16,4.127]
[1744928660566,0.29791428,591.77,591.16,4.127]
[1744928661864,0.721,591.78,591.16,4.127]
[1744928682680,1.29202224,592.8,591.16,4.127]
[1744928682883,0.33739329,592.78,591.16,4.127]
[1744928683383,0.29798854,592.77,591.16,4.127]
[1744928683582,0.33741037,592.75,591.16,4.127]
[1744928683779,0.29798854,592.74,591.16,4.127]
[1744928683983,0.33742745,592.72,591.16,4.127]
[1744928684180,0.29798854,592.71,591.16,4.127]
[1744928684379,0.33744453,592.69,591.16,4.127]
[1744928684585,0.29798854,592.68,591.16,4.127]
[1744928684781,0.33746161,592.66,591.16,4.127]
[1744928684983,0.29798854,592.65,591.16,4.127]
[1744928685185,0.33747869,592.63,591.16,4.127]
[1744928685585,0.29798854,592.62,591.16,4.127]
[1744928685784,0.33749578,592.6,591.16,4.127]
[1744928685985,0.29798854,592.59,591.16,4.127]
[1744928686182,0.33751286,592.57,591.16,4.127]
[1744928686385,0.29798854,592.56,591.16,4.127]
[1744928686583,0.33752995,592.54,591.16,4.127]
[1744928686785,0.29799015,592.53,591.16,4.127]
[1744928686982,0.33754704,592.51,591.16,4.127]
[1744928687284,0.29799015,592.5,591.16,4.127]
[1744928687488,0.33756413,592.48,591.16,4.127]
[1744928687685,0.29799015,592.47,591.16,4.127]
[1744928687885,0.33758123,592.45,591.16,4.127]
[1744928688287,0.29799241,592.44,591.16,4.127]
[1744928688483,0.33759832,592.42,591.16,4.127]
[1744928688687,0.29799241,592.41,591.16,4.127]
[1744928688888,0.33761542,592.39,591.16,4.127]
[1744928689088,0.29799241,592.38,591.16,4.127]
[1744928689286,0.33762682,592.37,591.16,4.127]
[1744928689490,0.29799241,592.36,591.16,4.127]
[1744928689691,0.33763822,592.35,591.16,4.127]
[1744928689887,0.29799241,592.34,591.16,4.127]
[1744928690086,0.33764962,592.33,591.16,4.127]
[1744928690291,0.29799241,592.32,591.16,4.127]
[1744928690485,0.33766102,592.31,591.16,4.127]
[1744928690686,0.29799241,592.3,591.16,4.127]
[1744928690889,0.33767242,592.29,591.16,4.127]
[1744928691090,0.29799241,592.28,591.16,4.127]
[1744928691290,0.33768382,592.27,591.16,4.127]
[1744928691591,0.29801241,592.26,591.16,4.127]
[1744928691792,0.33769523,592.25,591.16,4.127]
[1744928692091,0.29801241,592.24,591.16,4.127]
[1744928692292,0.33770663,592.23,591.16,4.127]
[1744928692592,0.29801241,592.22,591.16,4.127]
[1744928692792,0.33771803,592.21,591.16,4.127]
[1744928692986,0.29801241,592.2,591.16,4.127]
[1744928693189,0.33772944,592.19,591.16,4.127]
[1744928693390,0.29801241,592.18,591.16,4.127]
[1744928694591,0.33772944,592.19,591.16,4.127]
[1744928694793,0.29801571,592.18,591.16,4.127]
[1744928697800,0.33772944,592.19,591.16,4.127]
[1744928698100,0.29800754,592.18,591.16,4.127]
[1744928700899,0.33772944,592.19,591.16,4.127]
[1744928701099,0.29795768,592.18,591.16,4.127]
[1744928705402,0.33772944,592.19,591.16,4.127]
[1744928706999,0.29806443,592.18,591.16,4.127]
[1744928708703,0.862,592.17,591.16,4.127]
[1744928708899,0.29806427,592.16,591.16,4.127]
[1744928710003,0.862,592.17,591.16,4.127]
[1744928711106,0.29806314,592.16,591.16,4.127]
[1744928711712,0.862,592.17,591.16,4.127]
[1744928711900,0.29806637,592.16,591.16,4.127]
[1744928712604,0.862,592.17,591.16,4.127]
[1744928713104,0.862,592.17,591.16,4.46531788]
[1744928720913,0.29805561,592.16,591.16,4.46531788]
[1744928721209,0.862,592.17,591.16,4.46531788]
[1744928722616,0.29806189,592.16,591.17,0.31056825]
[1744928724111,0.29806189,592.16,591.16,0.33831788]
[1744928725215,0.29806189,592.16,591.16,0.49231788]
[1744928725614,0.29806189,592.16,591.16,1.07831788]
[1744928725815,0.29806189,592.16,591.16,1.28131788]
[1744928726110,0.29806189,592.16,591.16,2.16731788]
[1744928726316,0.29806189,592.16,591.16,3.80631788]
[1744928726817,0.29806189,592.16,591.16,4.52431788]
[1744928727720,0.862,592.17,591.16,4.52431788]
[1744928728018,0.29807182,592.16,591.16,4.52431788]
[1744928728616,0.29807182,592.16,591.17,0.31056998]
[1744928729319,0.862,592.17,591.16,4.52431788]
[1744928729520,0.29807451,592.16,591.17,0.31056779]
[1744928731019,0.29806463,592.15,591.18,0.31056672]
[1744928731320,0.29806463,592.14,591.16,4.81846785]
[1744928731619,0.29806463,592.13,591.17,0.31056843]
[1744928731814,0.29806463,592.16,591.17,0.31056843]
[1744928732019,0.29806463,592.15,591.17,0.31056843]
[1744928732319,0.29806463,592.14,591.17,0.31056843]
[1744928732619,0.29806005,592.13,591.18,0.31056696]
[1744928732819,0.29806005,592.16,591.17,0.31056696]
[1744928733120,0.29806005,592.15,591.18,0.31056904]
[1744928733419,0.29806005,592.14,591.16,4.52431788]
[1744928733621,0.29806005,592.16,591.17,0.31056904]
[1744928733821,0.29806005,592.15,591.17,0.60471901]
[1744928734022,0.29806005,592.16,591.18,0.31056904]
[1744928734920,0.29806005,592.18,591.18,0.31056904]
[1744928735122,0.29806005,592.17,591.18,0.31056904]
[1744928735319,0.29806005,592.18,591.18,0.31056904]
[1744928735520,0.29806005,592.17,591.18,0.31056904]
[1744928735726,0.33772944,592.19,591.17,0.29414997]
[1744928735925,0.29806043,592.18,591.18,0.31056942]
[1744928736621,0.29806043,592.18,591.17,0.31056942]
[1744928736923,0.33772944,592.19,591.17,0.29413629]
[1744928738621,0.94772944,592.19,591.17,0.29413629]
[1744928739425,0.94772944,592.19,591.16,2.97831788]
[1744928740726,0.94772944,592.19,591.16,3.52231788]
[1744928740927,0.94772944,592.19,591.17,0.2941251]
[1744928741931,0.94772944,592.19,591.17,0.8441251]
[1744928742427,0.94772944,592.19,591.17,0.55]
[1744928742727,0.94772944,592.19,591.17,0.84412386]
[1744928744328,0.94772944,592.19,591.17,1.60312386]
[1744928744526,0.94772944,592.19,591.18,0.33830643]
[1744928745926,0.61,592.19,591.18,0.33830643]
[1744928747629,0.61,592.19,591.18,0.49230643]
[1744928751630,0.61,592.19,591.18,0.69530643]
[1744928754435,0.61,592.19,591.19,0.31048015]
[1744928754635,0.61,592.19,591.2,0.33829499]
[1744928754836,0.61,592.19,591.21,0.31048015]
[1744928755132,0.61,592.19,591.22,1.02528354]
[1744928755334,0.61,592.19,591.23,0.64876623]
[1744928755535,0.29812556,592.18,591.24,0.64876051]
[1744928755735,0.29812556,592.18,591.25,0.64875479]
[1744928755935,0.29812556,592.18,591.26,0.64874907]
[1744928756231,0.29812556,592.18,591.27,0.64874335]
[1744928756436,0.29812556,592.18,591.28,0.64873763]
[1744928756636,0.29812556,592.18,591.29,0.64873191]
[1744928756838,0.29812556,592.18,591.3,0.33823778]
[1744928757136,0.29812556,592.18,591.31,0.31048841]
[1744928757336,0.29812556,592.18,591.32,0.33822634]
[1744928757530,0.29812556,592.18,591.33,0.31048841]
[1744928758433,0.61,592.19,591.32,0.33822634]
[1744928758632,0.29812819,592.18,591.34,0.842]
[1744928758834,0.29812819,592.18,591.35,0.31048522]
[1744928759639,0.61,592.19,591.35,0.31048522]
[1744928759836,0.61,592.19,591.34,0.842]
[1744928768145,0.61,592.19,591.35,0.203]
[1744928770548,0.61,592.19,591.36,0.729]
[1744928776157,0.61,592.19,591.37,0.692]
[1744928778953,0.61,592.19,591.38,0.154]
[1744928780659,0.61,592.19,591.39,0.31045584]
[1744928783862,0.61,592.19,591.38,0.154]
[1744928784058,0.61,592.19,591.39,0.31045633]
[1744928785066,0.61,592.19,591.4,0.583]
[1744928785264,0.61,592.19,591.41,0.31045633]
[1744928785462,0.61,592.19,591.4,0.583]
[1744928785659,0.61,592.19,591.41,0.31045665]
[1744928786362,0.61,592.19,591.41,0.92845665]
[1744928786562,0.61,592.19,591.41,0.618]
[1744928794072,0.61,592.19,591.41,1.274]
[1744928799874,0.61,592.19,591.41,1.428]
[1744928800070,0.61,592.19,591.41,1.631]
[1744928801475,0.61,592.19,591.41,2.303]
[1744928806779,0.61,592.19,591.41,3.07]
[1744928807485,0.61,592.19,591.41,3.725]
[1744928820290,0.61,592.19,591.42,0.31045492]
[1744928820590,0.61,592.19,591.41,2.451]
[1744928823586,0.61,592.19,591.41,2.78917487]
[1744928824091,0.61,592.19,591.41,3.99217487]
[1744928830296,0.61,592.19,591.42,0.31043042]
[1744928830795,0.61,592.19,591.41,1.83520678]
[1744928830994,0.61,592.19,591.42,0.31043074]
[1744928832399,0.61,592.19,591.41,1.83520678]
[1744928832597,0.61,592.19,591.42,0.3104302]
[1744928832995,0.61,592.19,591.42,0.5134302]
[1744928833198,0.61,592.19,591.43,0.3104302]
[1744928833795,0.61,592.19,591.43,0.4644302]
[1744928834004,0.61,592.19,591.44,0.3104302]
[1744928834204,0.61,592.19,591.45,0.31042822]
[1744928834404,0.61,592.19,591.44,0.31042822]
[1744928834605,0.61,592.19,591.45,0.31042822]
[1744928834805,0.61,592.19,591.44,0.31042822]
[1744928835005,0.61,592.19,591.45,0.31042822]
[1744928835205,0.61,592.19,591.44,0.31042822]
[1744928835403,0.61,592.19,591.45,0.31042822]
[1744928835606,0.61,592.19,591.44,0.31042822]
[1744928838507,0.61,592.19,591.45,0.528]
[1744928838810,0.61,592.19,591.46,0.31042822]
[1744928839607,0.61,592.19,591.45,0.528]
[1744928847716,0.61,592.19,591.46,0.877]
[1744928849615,0.61,592.19,591.47,0.3104409]
[1744928850620,0.61,592.19,591.48,0.31044069]
[1744928850819,0.61,592.19,591.47,0.31044069]
[1744928852115,0.61,592.19,591.46,0.877]
[1744928852319,0.61,592.19,591.47,0.310441]
[1744928854520,0.61,592.19,591.46,0.877]
[1744928857221,0.61,592.19,591.47,0.203]
[1744928863323,0.61,592.19,591.48,0.857]
[1744928864323,0.61,592.19,591.49,0.836]
[1744928865023,0.61,592.19,591.5,0.612]
[1744928867220,0.61,592.19,591.51,0.154]
[1744928878330,0.61,592.19,591.52,0.627]
[1744928879630,0.61,592.19,591.52,0.83]
[1744928879931,0.29783457,592.18,591.52,0.83]
[1744928880429,0.29783457,592.61,591.52,0.83]
[1744928880629,0.33750147,592.59,591.52,0.83]
[1744928880827,0.29403688,592.55,591.52,0.83]
[1744928881029,0.33753565,592.53,591.52,0.83]
[1744928881427,0.29784381,592.52,591.52,0.83]
[1744928881732,0.33754704,592.51,591.52,0.83]
[1744928882033,0.29784381,592.5,591.52,0.83]
[1744928882225,0.33755843,592.49,591.52,0.83]
[1744928882426,0.29784381,592.48,591.52,0.83]
[1744928882631,0.33756983,592.47,591.52,0.83]
[1744928882932,0.29784381,592.46,591.52,0.83]
[1744928883124,0.33758123,592.45,591.52,0.83]
[1744928883328,0.29784381,592.44,591.52,0.83]
[1744928883529,0.33759262,592.43,591.52,0.83]
[1744928883725,0.29784381,592.42,591.52,0.83]
[1744928883930,0.63544213,592.42,591.52,0.83]
[1744928884226,0.29784381,592.41,591.52,0.83]
[1744928884432,0.33759832,592.42,591.52,0.83]
[1744928884628,0.29792752,592.41,591.52,0.83]
[1744928885031,0.29792752,592.41,591.52,0.984]
[1744928886231,0.29792752,592.41,591.52,1.639]
[1744928890137,0.29792752,592.41,591.52,2.477]
[1744928894340,0.33759832,592.42,591.52,2.477]
[1744928894540,0.29786226,592.41,591.52,2.477]
[1744928894941,0.29786226,592.41,591.52,3.347]
[1744928895943,0.33759832,592.42,591.52,3.347]
[1744928896141,0.29785013,592.41,591.52,3.347]
[1744928897044,0.29785013,592.41,591.52,4.272]
[1744928902545,0.33759832,592.42,591.52,4.272]
[1744928902747,0.622,592.4,591.52,4.272]
[1744928903049,0.29786164,592.39,591.52,4.272]
[1744928907450,0.622,592.4,591.52,4.272]
[1744928907655,0.29784979,592.39,591.52,4.272]
[1744928914259,0.29784979,592.38,591.52,4.272]
[1744928914460,0.29784979,592.41,591.52,4.272]
[1744928914660,0.29784979,592.4,591.52,4.272]
[1744928914858,0.29784979,592.41,591.52,4.272]
[1744928917163,0.33759832,592.42,591.52,4.272]
[1744928917364,0.29785471,592.41,591.52,4.272]
[1744928917663,0.97585471,592.41,591.52,4.272]
[1744928917865,0.29785471,592.4,591.52,4.272]
[1744928918265,0.678,592.41,591.52,4.272]
[1744928923570,0.2978479,592.4,591.52,4.272]
[1744928926977,0.678,592.41,591.52,4.272]
[1744928927276,0.2979019,592.4,591.52,4.272]
[1744928933586,0.678,592.41,591.52,4.272]
[1744928933785,0.29791518,592.4,591.52,4.272]
[1744928936881,0.678,592.41,591.52,4.272]
[1744928940386,0.29809123,592.4,591.52,4.272]
[1744928942688,0.29809123,592.41,591.52,4.272]
[1744928942889,0.29816519,592.4,591.52,4.272]
[1744928943088,0.29816519,592.39,591.52,4.272]
[1744928943288,0.29816519,592.41,591.52,4.272]
[1744928943489,0.29816519,592.4,591.52,4.272]
[1744928943789,0.29816519,592.39,591.52,4.272]
[1744928944089,0.29816519,592.41,591.52,4.272]
[1744928945690,0.74,592.4,591.52,4.272]
[1744928945990,0.29816519,592.39,591.52,4.272]
[1744928946190,0.2981687,592.38,591.52,4.272]
[1744928946389,0.2981687,592.39,591.52,4.272]
[1744928950992,0.29820133,592.38,591.52,4.272]
[1744928951295,0.29820133,592.39,591.52,4.272]
[1744928951489,0.29820133,592.38,591.52,4.272]
[1744928951689,0.29820133,592.39,591.52,4.272]
[1744928951994,0.29820133,592.38,591.52,4.272]
[1744928952194,0.29820133,592.39,591.52,4.272]
[1744928952592,0.29820308,592.38,591.52,4.272]
[1744928952791,0.29820308,592.39,591.52,4.272]
[1744928952994,0.29820308,592.38,591.52,4.272]
[1744928953193,0.29820308,592.39,591.52,4.272]
[1744928953394,0.29820308,592.38,591.52,4.272]
[1744928953590,0.29820308,592.39,591.52,4.272]
[1744928955797,0.74,592.4,591.52,4.272]
[1744928955989,0.29819179,592.39,591.52,4.272]
[1744928959098,0.29819179,592.38,591.52,4.272]
[1744928959300,0.29819179,592.39,591.52,4.272]
[1744928959602,0.29819179,592.38,591.52,4.272]
[1744928959802,0.29819179,592.39,591.52,4.272]
[1744928960004,0.29819179,592.38,591.52,4.272]
[1744928960198,0.29819179,592.41,591.52,4.272]
[1744928960398,0.29819179,592.37,591.52,4.272]
[1744928960600,0.29819179,592.36,591.52,4.272]
[1744928960805,0.29819179,592.41,591.52,4.272]
[1744928961006,0.33759832,592.42,591.52,4.272]
[1744928962303,0.648,592.41,591.52,4.272]
[1744928966008,0.29817829,592.4,591.52,4.272]
[1744928966809,0.648,592.41,591.52,4.272]
[1744928970814,0.29816927,592.4,591.52,4.272]
[1744928972115,0.648,592.41,591.52,4.272]
[1744928972315,0.29816919,592.4,591.52,4.272]
[1744928973713,0.648,592.41,591.52,4.272]
[1744928973916,0.29817291,592.4,591.52,4.272]
[1744928975420,0.648,592.41,591.52,4.272]
[1744928975620,0.2981728,592.4,591.52,4.272]
[1744928978718,0.29817265,592.39,591.52,4.272]
[1744928978921,0.29817265,592.38,591.52,4.272]
[1744928979124,0.29817265,592.37,591.52,4.272]
[1744928979422,0.29817265,592.36,591.52,4.272]
[1744928979623,0.29817265,592.4,591.52,4.272]
[1744928979819,0.29817265,592.35,591.52,4.272]
[1744928980122,0.29817265,592.34,591.52,4.272]
[1744928980319,0.648,592.41,591.52,4.272]
[1744928980522,0.29817296,592.4,591.52,4.272]
[1744928981528,0.29817296,592.41,591.52,4.272]
[1744928981727,0.29817296,592.4,591.52,4.272]
[1744928982027,0.29817296,592.41,591.52,4.272]
[1744928982327,0.29817296,592.4,591.52,4.272]
[1744928982628,0.29817296,592.39,591.52,4.272]
[1744928982825,0.29817296,592.41,591.52,4.272]
[1744928985128,0.572,592.4,591.52,4.272]
[1744928985425,0.29817855,592.39,591.52,4.272]
[1744928987127,0.572,592.4,591.52,4.272]
[1744928987830,0.29817777,592.38,591.52,4.272]
[1744928988026,0.29817777,592.37,591.52,4.272]
[1744928988228,0.29817777,592.39,591.52,4.272]
[1744928988426,0.29817777,592.38,591.52,4.272]
[1744928988731,0.29817777,592.37,591.52,4.272]
[1744928989031,0.29817777,592.36,591.52,4.272]
[1744928989231,0.29817777,592.35,591.52,4.272]
[1744928989432,0.29817777,592.34,591.52,4.272]
[1744928989632,0.29817777,592.33,591.52,4.272]
[1744928989833,0.29817777,592.39,591.52,4.272]
[1744928990128,0.29817777,592.38,591.52,4.272]
[1744928990332,0.29817777,592.39,591.52,4.272]
[1744928992134,0.572,592.4,591.52,4.272]
[1744928992334,0.2981783,592.38,591.52,4.272]
[1744928992534,0.2981783,592.37,591.52,4.272]
[1744928992728,0.2981783,592.39,591.52,4.272]
[1744928996937,0.572,592.4,591.52,4.272]
[1744928997137,0.29817738,592.39,591.52,4.272]
[1744928998839,0.29817801,592.38,591.52,4.272]
[1744928999035,0.29817801,592.39,591.52,4.272]
[1744929001444,0.572,592.4,591.52,4.272]
[1744929001638,0.29816925,592.39,591.52,4.272]
[1744929006249,0.572,592.4,591.52,4.272]
[1744929006553,0.29816618,592.39,591.52,4.272]
[1744929007346,0.29816618,592.41,591.52,4.272]
[1744929007642,0.29816618,592.38,591.52,4.272]
[1744929007947,0.29817832,592.37,591.52,4.272]
[1744929008146,0.29817832,592.41,591.52,4.272]
[1744929008342,0.29817832,592.4,591.52,4.272]
[1744929008545,0.29817832,592.41,591.52,4.272]
[1744929008744,0.29817832,592.4,591.52,4.272]
[1744929009048,0.29817832,592.41,591.52,4.272]
[1744929009249,0.29817832,592.4,591.52,4.272]
[1744929009544,0.33759832,592.42,591.52,4.272]
[1744929009748,0.2981706,592.41,591.52,4.272]
[1744929010848,0.594,592.4,591.52,4.272]
[1744929011149,0.2981706,592.39,591.52,4.272]
[1744929014347,0.594,592.4,591.52,4.272]
[1744929014551,0.2981702,592.39,591.52,4.272]
[1744929016053,0.594,592.4,591.52,4.272]
[1744929016254,0.29816962,592.39,591.52,4.272]
[1744929021056,0.2981715,592.38,591.52,4.272]
[1744929021257,0.2981715,592.39,591.52,4.272]
[1744929021456,0.2981715,592.38,591.52,4.272]
[1744929021657,0.2981715,592.37,591.52,4.272]
[1744929021859,0.2981715,592.39,591.52,4.272]
[1744929022158,0.2981715,592.38,591.52,4.272]
[1744929022359,0.2981715,592.39,591.52,4.272]
[1744929022558,0.2981715,592.38,591.52,4.272]
[1744929022859,0.2981715,592.39,591.52,4.272]
[1744929023060,0.2981715,592.41,591.52,4.272]
[1744929023254,0.2981715,592.4,591.52,4.272]
[1744929023457,0.2981715,592.41,591.52,4.272]
[1744929026161,0.632,592.4,591.52,4.272]
[1744929026354,0.2981715,592.39,591.52,4.272]
[1744929029162,0.632,592.4,591.52,4.272]
[1744929029462,0.29816223,592.39,591.52,4.272]
[1744929035862,0.29816793,592.38,591.52,4.272]
[1744929036056,0.29816793,592.39,591.52,4.272]
[1744929036257,0.29816793,592.38,591.52,4.272]
[1744929036662,0.29816793,592.37,591.52,4.272]
[1744929036859,0.29816793,592.39,591.52,4.272]
[1744929037261,0.632,592.4,591.52,4.272]
[1744929037465,0.29816581,592.39,591.52,4.272]
[1744929040571,0.632,592.4,591.52,4.272]
[1744929040767,0.29816247,592.39,591.52,4.272]
[1744929042263,0.632,592.4,591.52,4.272]
[1744929042470,0.29816226,592.39,591.52,4.272]
[1744929044069,0.29816388,592.38,591.52,4.272]
[1744929044268,0.29816388,592.39,591.52,4.272]
[1744929045771,0.29816126,592.38,591.52,4.272]
[1744929045970,0.29816126,592.39,591.52,4.272]
[1744929047370,0.29816126,592.41,591.52,4.272]
[1744929047573,0.29816126,592.4,591.52,4.272]
[1744929047774,0.29816126,592.41,591.52,4.272]
[1744929047969,0.29816126,592.4,591.52,4.272]
[1744929048175,0.29816126,592.41,591.52,4.272]
[1744929048369,0.29816126,592.4,591.52,4.272]
[1744929048569,0.29816126,592.41,591.52,4.272]
[1744929048775,0.29816126,592.4,591.52,4.272]
[1744929048968,0.29816126,592.41,591.52,4.272]
[1744929049170,0.29816126,592.4,591.52,4.272]
[1744929049474,0.29816126,592.41,591.52,4.272]
[1744929049675,0.33759832,592.42,591.52,4.272]
[1744929049676,0.518,592.39,591.52,4.272]
[1744929049868,0.29816126,592.38,591.52,4.272]
[1744929053482,0.518,592.39,591.52,4.272]
[1744929053983,0.29822263,592.38,591.52,4.272]
[1744929054882,0.33762682,592.37,591.52,4.272]
[1744929055183,0.29822263,592.36,591.52,4.272]
[1744929055377,0.63585515,592.36,591.52,4.272]
[1744929055579,0.33763822,592.35,591.52,4.272]
[1744929055777,0.29819338,592.34,591.52,4.272]
[1744929055982,0.6358373,592.34,591.52,4.272]
[1744929056183,0.29819338,592.33,591.52,4.272]
[1744929059086,0.29820003,592.32,591.52,4.272]
[1744929059286,0.29820003,592.33,591.52,4.272]
[1744929059586,0.29820003,592.32,591.52,4.272]
[1744929059786,0.29820003,592.33,591.52,4.272]
[1744929060787,0.29819407,592.32,591.52,4.272]
[1744929060985,0.29819407,592.33,591.52,4.272]
[1744929061788,0.33764392,592.34,591.52,4.272]
[1744929061983,0.29819453,592.33,591.52,4.272]
[1744929063387,0.33764392,592.34,591.52,4.272]
[1744929073304,0.29819813,592.33,591.52,4.272]
[1744929075109,0.33764392,592.34,591.52,4.272]
[1744929075301,0.29819782,592.33,591.52,4.272]
[1744929075500,0.95719782,592.33,591.52,4.272]
[1744929075704,0.659,592.33,591.52,4.272]
[1744929076006,0.29819782,592.32,591.52,4.272]
[1744929076704,0.659,592.33,591.52,4.272]
[1744929076900,0.29819808,592.32,591.52,4.272]
[1744929089906,0.659,592.33,591.52,4.272]
[1744929090110,0.29817543,592.32,591.52,4.272]
[1744929092712,0.29817543,592.31,591.52,4.272]
[1744929092914,0.29817543,592.33,591.52,4.272]
[1744929093116,0.29817543,592.3,591.52,4.272]
[1744929093410,0.29817572,592.29,591.52,4.272]
[1744929093617,0.29817572,592.33,591.52,4.272]
[1744929093814,0.29817572,592.32,591.52,4.272]
[1744929094017,0.29817572,592.33,591.52,4.272]
[1744929094212,0.29817572,592.32,591.52,4.272]
[1744929094409,0.29817572,592.31,591.52,4.272]
[1744929094614,0.29817572,592.33,591.52,4.272]
[1744929094815,0.29817572,592.32,591.52,4.272]
[1744929095014,0.29817572,592.33,591.52,4.272]
[1744929095216,0.29817572,592.32,591.52,4.272]
[1744929095413,0.29817572,592.33,591.52,4.272]
[1744929095614,0.29817572,592.32,591.52,4.272]
[1744929095815,0.29817572,592.31,591.52,4.272]
[1744929096015,0.29817572,592.33,591.52,4.272]
[1744929096210,0.29817572,592.32,591.52,4.272]
[1744929096415,0.29817572,592.33,591.52,4.272]
[1744929096616,0.805,592.32,591.52,4.272]
[1744929096817,0.29817572,592.31,591.52,4.272]
[1744929107936,0.805,592.32,591.52,4.272]
[1744929108240,0.29817095,592.31,591.52,4.272]
[1744929113138,0.805,592.32,591.52,4.272]
[1744929113337,0.29815655,592.31,591.52,4.272]
[1744929113843,0.29815655,592.61,591.52,4.272]
[1744929114043,1.29202224,592.49,591.52,4.272]
[1744929114244,0.29815655,592.48,591.52,4.272]
[1744929116242,0.791,592.47,591.52,4.272]
[1744929116439,0.29815655,592.46,591.52,4.272]
[1744929125750,0.791,592.47,591.52,4.272]
[1744929125950,0.29815621,592.46,591.52,4.272]
[1744929127457,0.791,592.47,591.52,4.272]
[1744929127646,0.29815507,592.46,591.52,4.272]
[1744929129048,0.791,592.47,591.52,4.272]
[1744929129255,0.29814171,592.46,591.52,4.272]
[1744929132355,0.791,592.47,591.52,4.272]
[1744929132556,0.29814781,592.46,591.52,4.272]
[1744929139059,0.29814186,592.45,591.52,4.272]
[1744929139356,0.791,592.47,591.52,4.272]
[1744929139759,0.29814154,592.46,591.52,4.272]
[1744929140456,0.29814154,592.48,591.52,4.272]
[1744929140657,1.29202224,592.49,591.52,4.272]
[1744929140853,0.29814396,592.48,591.52,4.272]
[1744929141257,0.29814396,592.8,591.52,4.272]
[1744929141453,0.33739329,592.78,591.52,4.272]
[1744929141753,0.29814396,592.77,591.52,4.272]
[1744929142960,0.61,592.76,591.52,4.272]
[1744929143260,0.29814396,592.75,591.52,4.272]
[1744929143760,0.61,592.76,591.52,4.272]
[1744929143959,0.29814392,592.75,591.52,4.272]